fUST/lending_fUST_20241009
["ID","MTS","AMOUNT","RATE_DAILY","PERIOD"]
[340061502,1728426686264,-500.0,0.00068493,120]
[340061503,1728426686277,-645.83,0.00068493,120]
[340061504,1728426686291,-500.0,0.00068493,120]
[340061505,1728426686306,-1359.42,0.00068493,120]
[340061506,1728426686320,-500.0,0.00068493,120]
[340061507,1728426686333,-500.0,0.00068493,120]
[340061508,1728426686347,-1359.42,0.00068493,120]
[340061509,1728426686361,-645.83,0.00068493,120]
[340061510,1728426686503,-500.0,0.00068493,120]
[340061511,1728426686514,-500.0,0.00068493,120]
[340061512,1728426686523,-1359.42,0.00068493,120]
[340061513,1728426686533,-645.83,0.00068493,120]
[340061514,1728426686542,-500.0,0.00068493,120]
[340061515,1728426686552,-500.0,0.00068493,120]
[340061516,1728426686561,-500.0,0.00068493,120]
[340061517,1728426686571,-1359.42,0.00068493,120]
[340061518,1728426686580,-645.83,0.00068493,120]
[340061519,1728426686589,-500.0,0.00068493,120]
[340061520,1728426686599,-500.0,0.00068493,120]
[340061521,1728426686607,-500.0,0.00068493,120]
[340061522,1728426686617,-1359.42,0.00068493,120]
[340061523,1728426686626,-645.83,0.00068493,120]
[340061524,1728426686637,-268.03538219,0.00068493,120]
[340061525,1728426686647,-500.0,0.00068493,120]
[340061526,1728426686659,-2180.96,0.00068493,120]
[340061527,1728426686669,-1359.42,0.00068493,120]
[340061528,1728426686680,-2180.96,0.00068493,120]
[340061529,1728426686691,-500.0,0.00068493,120]
[340061530,1728426686703,-645.83,0.00068493,120]
[340061531,1728426686714,-577.61,0.00068493,120]
[340061532,1728426686724,-2180.96,0.00068493,120]
[340061533,1728426686735,-645.83,0.00068493,120]
[340061534,1728426686748,-1359.42,0.00068493,120]
[340061535,1728426686758,-500.0,0.00068493,120]
[340061536,1728426686768,-645.83,0.00068493,120]
[340061537,1728426686779,-1359.42,0.00068493,120]
[340061538,1728426686788,-500.0,0.00068493,120]
[340061539,1728426686799,-645.83,0.00068493,120]
[340061540,1728426686812,-2180.96,0.00068493,120]
[340061541,1728426686822,-1359.42,0.00068493,120]
[340061542,1728426686831,-645.83,0.00068493,120]
[340061543,1728426686840,-500.0,0.00068493,120]
[340061544,1728426686853,-2180.96,0.00068493,120]
[340061545,1728426686865,-1359.42,0.00068493,120]
[340061546,1728426686875,-2180.96,0.00068493,120]
[340061547,1728426686886,-1359.42,0.00068493,120]
[340061548,1728426686895,-645.83,0.00068493,120]
[340061549,1728426686905,-500.0,0.00068493,120]
[340061550,1728426686914,-2180.96,0.00068493,120]
[340061551,1728426686924,-645.83,0.00068493,120]
[340061552,1728426686933,-500.0,0.00068493,120]
[340061553,1728426686944,-1359.42,0.00068493,120]
[340061554,1728426686955,-2180.96,0.00068493,120]
[340061555,1728426686965,-645.83,0.00068493,120]
[340061556,1728426686974,-1359.42,0.00068493,120]
[340061557,1728426686984,-500.0,0.00068493,120]
[340061558,1728426686994,-2180.96,0.00068493,120]
[340061559,1728426687003,-645.83,0.00068493,120]
[340061560,1728426687013,-1359.42,0.00068493,120]
[340061561,1728426687023,-500.0,0.00068493,120]
[340061562,1728426687033,-2180.96,0.00068493,120]
[340061563,1728426687042,-645.83,0.00068493,120]
[340061564,1728426687052,-500.0,0.00068493,120]
[340061565,1728426687062,-1359.42,0.00068493,120]
[340061566,1728426687072,-356.98803298,0.00068493,120]
[340061567,1728426687081,-500.0,0.00068493,120]
[340061568,1728426687091,-2180.96,0.00068493,120]
[340061569,1728426687101,-645.83,0.00068493,120]
[340061570,1728426687111,-645.91,0.00068493,120]
[340061571,1728426687121,-500.0,0.00068493,120]
[340061572,1728426687131,-2180.96,0.00068493,120]
[340061573,1728426687140,-1359.42,0.00068493,120]
[340061574,1728426687150,-500.0,0.00068493,120]
[340061575,1728426687163,-2180.96,0.00068493,120]
[340061576,1728426687172,-1359.42,0.00068493,120]
[340061577,1728426687181,-2180.96,0.00068493,120]
[340061578,1728426687191,-1359.42,0.00068493,120]
[340061579,1728426687200,-2180.96212975,0.00068493,120]
[340061580,1728426687210,-1359.42,0.00068493,120]
[340061581,1728426687221,-1359.52836135,0.00068493,120]
[340061582,1728426687232,-500.0,0.00068493,120]
[340061583,1728426687244,-500.0,0.00068493,120]
[340061584,1728426687254,-500.0,0.00068493,120]
[340061585,1728426687263,-500.0,0.00068493,120]
[340061586,1728426687273,-827.13,0.00068493,120]
[340061587,1728426687282,-1000.0,0.00068493,120]
[340061588,1728426687292,-500.0,0.00068493,120]
[340061589,1728426687301,-1000.0,0.00068493,120]
[340061590,1728426687311,-1000.0,0.00068493,120]
[340061591,1728426687320,-1330.57,0.00068493,120]
[340061592,1728426687329,-1000.0,0.00068493,120]
[340061593,1728426687339,-1000.0,0.00068493,120]
[340061594,1728426687348,-1330.57,0.00068493,120]
[340061595,1728426687358,-500.0,0.00068493,120]
[340061596,1728426687367,-1000.0,0.00068493,120]
[340061597,1728426687377,-1330.57,0.00068493,120]
[340061598,1728426687387,-500.0,0.00068493,120]
[340061599,1728426687396,-1000.0,0.00068493,120]
[340061600,1728426687406,-1330.57,0.00068493,120]
[340061601,1728426687415,-258.06901238,0.00068493,120]
[340061602,1728426687426,-1000.0,0.00068493,120]
[340061603,1728426687435,-1330.57,0.00068493,120]
[340061604,1728426687444,-1000.0,0.00068493,120]
[340061605,1728426687454,-1163.33,0.00068493,120]
[340061606,1728426687464,-1330.57,0.00068493,120]
[340061607,1728426687475,-1000.0,0.00068493,120]
[340061608,1728426687484,-1163.33,0.00068493,120]
[340061609,1728426687495,-1330.57,0.00068493,120]
[340061610,1728426687504,-1163.33,0.00068493,120]
[340061611,1728426687514,-1330.57,0.00068493,120]
[340061612,1728426687523,-500.0,0.00068493,120]
[340061613,1728426687532,-1000.0,0.00068493,120]
[340061614,1728426687542,-1163.33,0.00068493,120]
[340061615,1728426687552,-1330.57,0.00068493,120]
[340061616,1728426687563,-1163.33,0.00068493,120]
[340061617,1728426687573,-1330.57,0.00068493,120]
[340061618,1728426687582,-500.0,0.00068493,120]
[340061619,1728426687592,-1000.0,0.00068493,120]
[340061620,1728426687601,-1163.33,0.00068493,120]
[340061621,1728426687610,-1330.57,0.00068493,120]
[340061622,1728426687620,-1000.0,0.00068493,120]
[340061623,1728426687629,-500.0,0.00068493,120]
[340061624,1728426687639,-527.27,0.00068493,120]
[340061625,1728426687648,-1163.33,0.00068493,120]
[340061626,1728426687658,-1330.57,0.00068493,120]
[340061627,1728426687667,-1000.0,0.00068493,120]
[340061628,1728426687677,-500.0,0.00068493,120]
[340061629,1728426687686,-1163.33,0.00068493,120]
[340061630,1728426687695,-500.0,0.00068493,120]
[340061631,1728426687704,-1330.57,0.00068493,120]
[340061632,1728426687713,-500.0,0.00068493,120]
[340061633,1728426687722,-484.48900764,0.00068493,120]
[340061634,1728426687731,-500.0,0.00068493,120]
[340061635,1728426687741,-1163.33,0.00068493,120]
[340061636,1728426687751,-500.0,0.00068493,120]
[340061637,1728426687760,-1330.57,0.00068493,120]
[340061638,1728426687769,-500.0,0.00068493,120]
[340061639,1728426687778,-500.0,0.00068493,120]
[340061640,1728426687787,-1163.33,0.00068493,120]
[340061641,1728426687796,-500.0,0.00068493,120]
[340061642,1728426687809,-1330.57,0.00068493,120]
[340061643,1728426687818,-431.37818403,0.00068493,120]
[340061644,1728426687828,-513.73407875,0.00068493,120]
[340061645,1728426687838,-500.0,0.00068493,120]
[340061646,1728426687847,-1163.33,0.00068493,120]
[340061647,1728426687857,-1330.57,0.00068493,120]
[340061648,1728426687866,-1330.57,0.00068493,120]
[340061649,1728426687876,-1163.33,0.00068493,120]
[340061650,1728426687885,-1330.57,0.00068493,120]
[340061651,1728426687895,-1163.33,0.00068493,120]
[340061652,1728426687904,-500.0,0.00068493,120]
[340061653,1728426687914,-1330.57,0.00068493,120]
[340061654,1728426687923,-1163.33,0.00068493,120]
[340061655,1728426687933,-1330.57,0.00068493,120]
[340061656,1728426687942,-1163.33,0.00068493,120]
[340061657,1728426687952,-1330.57,0.00068493,120]
[340061658,1728426687962,-1163.33,0.00068493,120]
[340061659,1728426687971,-1330.57,0.00068493,120]
[340061660,1728426687980,-1163.33,0.00068493,120]
[340061661,1728426687990,-500.0,0.00068493,120]
[340061662,1728426688002,-1330.57,0.00068493,120]
[340061663,1728426688012,-501.31926033,0.00068493,120]
[340061664,1728426688022,-1330.73407592,0.00068493,120]
[340061665,1728426688032,-1163.33,0.00068493,120]
[340061666,1728426688042,-1163.33,0.00068493,120]
[340061667,1728426688051,-1163.33,0.00068493,120]
[340061668,1728426688064,-1163.33,0.00068493,120]
[340061669,1728426688074,-1163.33,0.00068493,120]
[340061670,1728426688084,-1163.33,0.00068493,120]
[340061671,1728426688094,-1163.3817158,0.00068493,120]
[340061672,1728426688103,-500.0,0.00068493,120]
[340061673,1728426688114,-500.0,0.00068493,120]
[340061674,1728426688124,-502.96024248,0.00068493,120]
[340061675,1728426688213,-500.0,0.00068493,120]
[340061676,1728426688233,-498.99680516,0.00068493,120]
[340061677,1728426688246,-500.94228319,0.00068493,120]
[340061678,1728426688256,-448.46131732,0.00068493,120]
[340061679,1728426688266,-500.0,0.00068493,120]
[340061680,1728426688275,-500.0,0.00068493,120]
[340061681,1728426688285,-500.0,0.00068493,120]
[340061682,1728426688295,-500.0,0.00068493,120]
[340061683,1728426688304,-605.470729,0.00068493,120]
[340061684,1728426688313,-500.0,0.00068493,120]
[340061685,1728426688323,-222.2787689,0.00068493,120]
[340061686,1728426688333,-500.0,0.00068493,120]
[340061687,1728426688343,-500.0,0.00068493,120]
[340061688,1728426688355,-559.4035127,0.00068493,120]
[340061689,1728426688366,-500.0,0.00068493,120]
[340061690,1728426688375,-500.0,0.00068493,120]
[340061691,1728426688385,-500.0,0.00068493,120]
[340061692,1728426688395,-522.92604045,0.00068493,120]
[340061693,1728426688404,-2439.9,0.00068493,120]
[340061694,1728426688414,-2439.9,0.00068493,120]
[340061695,1728426688425,-2439.9,0.00068493,120]
[340061696,1728426688436,-500.0,0.00068493,120]
[340061697,1728426688447,-2439.9,0.00068493,120]
[340061698,1728426688459,-2439.9,0.00068493,120]
[340061699,1728426688469,-2439.9,0.00068493,120]
[340061700,1728426688478,-500.0,0.00068493,120]
[340061701,1728426688489,-2439.9,0.00068493,120]
[340061702,1728426688502,-500.0,0.00068493,120]
[340061703,1728426688512,-500.0,0.00068493,120]
[340061704,1728426688523,-2439.9,0.00068493,120]
[340061705,1728426688534,-500.0,0.00068493,120]
[340061706,1728426688544,-503.01024306,0.00068493,120]
[340061707,1728426688555,-2439.9,0.00068493,120]
[340061708,1728426688565,-2439.9,0.00068493,120]
[340061709,1728426688574,-2439.9,0.00068493,120]
[340061710,1728426688584,-2439.9,0.00068493,120]
[340061711,1728426688593,-500.0,0.00068493,120]
[340061712,1728426688603,-2439.9,0.00068493,120]
[340061713,1728426688612,-2439.9,0.00068493,120]
[340061714,1728426688621,-500.0,0.00068493,120]
[340061715,1728426688630,-2439.9,0.00068493,120]
[340061716,1728426688640,-593.01523136,0.00068493,120]
[340061717,1728426688650,-2439.9,0.00068493,120]
[340061718,1728426688661,-2439.9,0.00068493,120]
[340061719,1728426688670,-2439.9,0.00068493,120]
[340061720,1728426688679,-2439.9,0.00068493,120]
[340061721,1728426688690,-2439.9,0.00068493,120]
[340061722,1728426688701,-2439.9,0.00068493,120]
[340061723,1728426688711,-500.0,0.00068493,120]
[340061724,1728426688722,-2439.9,0.00068493,120]
[340061725,1728426688733,-2439.9,0.00068493,120]
[340061726,1728426688749,-500.0,0.00068493,120]
[340061727,1728426688759,-2440.00113416,0.00068493,120]
[340061728,1728426688772,-550.89755036,0.00068493,120]
[340061729,1728426688781,-500.0,0.00068493,120]
[340061730,1728426688790,-500.0,0.00068493,120]
[340061731,1728426688799,-500.0,0.00068493,120]
[340061732,1728426688812,-500.0,0.00068493,120]
[340061733,1728426688821,-500.0,0.00068493,120]
[340061734,1728426688830,-500.0,0.00068493,120]
[340061735,1728426688839,-499.17967442,0.00068493,120]
[340061736,1728426688848,-500.0,0.00068493,120]
[340061737,1728426688859,-500.0,0.00068493,120]
[340061738,1728426688870,-500.0,0.00068493,120]
[340061739,1728426688879,-500.0,0.00068493,120]
[340061740,1728426688890,-500.0,0.00068493,120]
[340061741,1728426688899,-440.13040953,0.00068493,120]
[340061742,1728426688908,-500.0,0.00068493,120]
[340061743,1728426688917,-3876.65,0.00068493,120]
[340061744,1728426688926,-3876.65,0.00068493,120]
[340061745,1728426688936,-3876.65,0.00068493,120]
[340061746,1728426688946,-3876.65,0.00068493,120]
[340061747,1728426688956,-500.0,0.00068493,120]
[340061748,1728426688965,-3876.65,0.00068493,120]
[340061749,1728426688975,-500.0,0.00068493,120]
[340061750,1728426688985,-500.0,0.00068493,120]
[340061751,1728426688999,-3876.65,0.00068493,120]
[340061752,1728426689008,-500.0,0.00068493,120]
[340061753,1728426689018,-501.19767967,0.00068493,120]
[340061754,1728426689027,-3876.65,0.00068493,120]
[340061755,1728426689036,-500.0,0.00068493,120]
[340061756,1728426689046,-500.0,0.00068493,120]
[340061757,1728426689055,-3876.65,0.00068493,120]
[340061758,1728426689064,-500.0,0.00068493,120]
[340061759,1728426689074,-547.24428031,0.00068493,120]
[340061760,1728426689083,-3876.65,0.00068493,120]
[340061761,1728426689093,-500.0,0.00068493,120]
[340061762,1728426689102,-500.0,0.00068493,120]
[340061763,1728426689112,-3876.65,0.00068493,120]
[340061764,1728426689122,-3876.65,0.00068493,120]
[340061765,1728426689131,-500.0,0.00068493,120]
[340061766,1728426689141,-548.56828484,0.00068493,120]
[340061767,1728426689151,-3876.65,0.00068493,120]
[340061768,1728426689160,-3876.65,0.00068493,120]
[340061769,1728426689170,-3876.65,0.00068493,120]
[340061770,1728426689180,-3876.65,0.00068493,120]
[340061771,1728426689192,-3876.65,0.00068493,120]
[340061772,1728426689202,-500.0,0.00068493,120]
[340061773,1728426689212,-3876.65,0.00068493,120]
[340061774,1728426689223,-3876.65,0.00068493,120]
[340061775,1728426689235,-3876.65,0.00068493,120]
[340061776,1728426689247,-500.0,0.00068493,120]
[340061777,1728426689256,-3876.65,0.00068493,120]
[340061778,1728426689267,-500.0,0.00068493,120]
[340061779,1728426689278,-500.0,0.00068493,120]
[340061780,1728426689287,-3876.65,0.00068493,120]
[340061781,1728426689297,-500.0,0.00068493,120]
[340061782,1728426689308,-3876.65,0.00068493,120]
[340061783,1728426689318,-500.0,0.00068493,120]
[340061784,1728426689328,-500.0,0.00068493,120]
[340061785,1728426689338,-3876.65,0.00068493,120]
[340061786,1728426689347,-500.0,0.00068493,120]
[340061787,1728426689357,-501.59494203,0.00068493,120]
[340061788,1728426689366,-500.0,0.00068493,120]
[340061789,1728426689376,-3876.85072701,0.00068493,120]
[340061790,1728426689386,-500.0,0.00068493,120]
[340061791,1728426689396,-500.0,0.00068493,120]
[340061792,1728426689406,-500.0,0.00068493,120]
[340061793,1728426689416,-500.0,0.00068493,120]
[340061794,1728426689425,-500.0,0.00068493,120]
[340061795,1728426689435,-500.0,0.00068493,120]
[340061796,1728426689445,-500.0,0.00068493,120]
[340061797,1728426689454,-500.0,0.00068493,120]
[340061798,1728426689465,-500.0,0.00068493,120]
[340061799,1728426689474,-500.0,0.00068493,120]
[340061800,1728426689484,-540.99770622,0.00068493,120]
[340061801,1728426689496,-500.0,0.00068493,120]
[340061802,1728426689506,-500.0,0.00068493,120]
[340061803,1728426689515,-500.0,0.00068493,120]
[340061804,1728426689525,-500.0,0.00068493,120]
[340061805,1728426689534,-500.0,0.00068493,120]
[340061806,1728426689543,-500.0,0.00068493,120]
[340061807,1728426689553,-500.0,0.00068493,120]
[340061808,1728426689565,-500.0,0.00068493,120]
[340061809,1728426689575,-500.0,0.00068493,120]
[340061810,1728426689585,-500.0,0.00068493,120]
[340061811,1728426689595,-500.0,0.00068493,120]
[340061812,1728426689604,-500.0,0.00068493,120]
[340061813,1728426689614,-500.0,0.00068493,120]
[340061814,1728426689624,-500.0,0.00068493,120]
[340061815,1728426689633,-500.0,0.00068493,120]
[340061816,1728426689643,-211.868167,0.00068493,120]
[340061817,1728426689652,-500.0,0.00068493,120]
[340061818,1728426689662,-500.0,0.00068493,120]
[340061819,1728426689672,-506.67882344,0.00068493,120]
[340061820,1728426689682,-599.98671763,0.00068493,120]
[340061821,1728426689691,-500.0,0.00068493,120]
[340061822,1728426689701,-500.0,0.00068493,120]
[340061823,1728426689711,-500.0,0.00068493,120]
[340061824,1728426689720,-500.0,0.00068493,120]
[340061825,1728426689730,-500.0,0.00068493,120]
[340061826,1728426689740,-500.0,0.00068493,120]
[340061827,1728426689827,-500.0,0.00068493,120]
[340061828,1728426689846,-500.0,0.00068493,120]
[340061829,1728426689856,-500.0,0.00068493,120]
[340061830,1728426689866,-500.0,0.00068493,120]
[340061831,1728426689876,-500.0,0.00068493,120]
[340061832,1728426689886,-500.0,0.00068493,120]
[340061833,1728426689896,-500.0,0.00068493,120]
[340061834,1728426689906,-500.0,0.00068493,120]
[340061835,1728426689915,-500.0,0.00068493,120]
[340061836,1728426689925,-500.0,0.00068493,120]
[340061837,1728426689935,-500.0,0.00068493,120]
[340061838,1728426689945,-500.0,0.00068493,120]
[340061839,1728426689955,-500.0,0.00068493,120]
[340061840,1728426689964,-500.0,0.00068493,120]
[340061841,1728426689975,-500.0,0.00068493,120]
[340061842,1728426689985,-500.0,0.00068493,120]
[340061843,1728426689994,-500.0,0.00068493,120]
[340061844,1728426690005,-500.0,0.00068493,120]
[340061845,1728426690014,-500.0,0.00068493,120]
[340061846,1728426690024,-500.0,0.00068493,120]
[340061847,1728426690034,-581.2,0.00068493,120]
[340061848,1728426690044,-500.0,0.00068493,120]
[340061849,1728426690054,-500.0,0.00068493,120]
[340061850,1728426690065,-187.15555544,0.00068493,120]
[340061851,1728426690075,-338.71808216,0.00068493,120]
[340061852,1728426690085,-500.0,0.00068493,120]
[340061853,1728426690095,-500.0,0.00068493,120]
[340061854,1728426690105,-500.0,0.00068493,120]
[340061855,1728426690116,-500.0,0.00068493,120]
[340061856,1728426690125,-500.0,0.00068493,120]
[340061857,1728426690134,-500.0,0.00068493,120]
[340061858,1728426690146,-500.0,0.00068493,120]
[340061859,1728426690156,-435.69071917,0.00068493,120]
[340061860,1728426690167,-500.0,0.00068493,120]
[340061861,1728426690177,-1717.19,0.00068493,120]
[340061862,1728426690188,-500.0,0.00068493,120]
[340061863,1728426690199,-1717.19,0.00068493,120]
[340061864,1728426690210,-1717.19,0.00068493,120]
[340061865,1728426690219,-1717.19,0.00068493,120]
[340061866,1728426690229,-508.09989567,0.00068493,120]
[340061867,1728426690239,-1717.19,0.00068493,120]
[340061868,1728426690251,-1717.19,0.00068493,120]
[340061869,1728426690260,-1717.19,0.00068493,120]
[340061870,1728426690270,-1717.19,0.00068493,120]
[340061871,1728426690279,-1717.19,0.00068493,120]
[340061872,1728426690289,-1717.19,0.00068493,120]
[340061873,1728426690299,-1717.19,0.00068493,120]
[340061874,1728426690308,-1717.19,0.00068493,120]
[340061875,1728426690317,-1717.19,0.00068493,120]
[340061876,1728426690327,-1717.19,0.00068493,120]
[340061877,1728426690337,-1717.19,0.00068493,120]
[340061878,1728426690347,-1717.19,0.00068493,120]
[340061879,1728426690357,-1717.19,0.00068493,120]
[340061880,1728426690367,-1717.19,0.00068493,120]
[340061881,1728426690377,-1717.19,0.00068493,120]
[340061882,1728426690386,-1717.19,0.00068493,120]
[340061883,1728426690397,-1717.19,0.00068493,120]
[340061884,1728426690408,-1717.19,0.00068493,120]
[340061885,1728426690419,-1717.19,0.00068493,120]
[340061886,1728426690430,-1717.39260209,0.00068493,120]
[340061887,1728426690441,-500.0,0.00068493,120]
[340061888,1728426690451,-500.0,0.00068493,120]
[340061889,1728426690461,-500.0,0.00068493,120]
[340061890,1728426690471,-500.0,0.00068493,120]
[340061891,1728426690481,-500.0,0.00068493,120]
[340061892,1728426690491,-352.12332279,0.00068493,120]
[340061893,1728426690502,-500.0,0.00068493,120]
[340061894,1728426690512,-500.0,0.00068493,120]
[340061895,1728426690521,-412.72537389,0.00068493,120]
[340061896,1728426690531,-2000.0,0.000685,120]
[340061897,1728426690541,-2000.0,0.000685,120]
[340061898,1728426690552,-2000.0,0.000685,120]
[340061899,1728426690562,-400.0,0.00068955,2]
[340061900,1728426690573,-160.0,0.00068962,5]
[340061901,1728426690582,-1000000.0,0.00069,120]
[340061902,1728426690591,-300000.0,0.00069,120]
[340061903,1728426690601,-30000.0,0.00069,120]
[340061904,1728426690611,-3000.0,0.00069,120]
[340061905,1728426690621,-166.9,0.00069,30]
[340061906,1728426690631,-3000.0,0.0006901,120]
[340061907,1728426690641,-3000.0,0.0006902,120]
[340061908,1728426690651,-3000.0,0.0006903,120]
[340061909,1728426690662,-5606.021178,0.0006904,120]
[340061910,1728426690672,-1000000.0,0.000695,120]
[340061911,1728426690681,-28768.68153091,0.000695,120]
[340061912,1728426690692,-1591.45,0.000696,14]
[340061913,1728426690702,-2000000.04826732,0.000698,120]
[340061914,1728426690714,-827.13,0.00069863,120]
[340061915,1728426690725,-2482.91173601,0.00069885,120]
[340061916,1728426690735,-166.2,0.00069974,120]
[340061917,1728426690747,-2000.0,0.0007,70]
[340061918,1728426690757,-647991.61418583,0.0007,120]
[340061919,1728426831927,434.4,0.00037169,120]
[340061920,1728426903126,400.0,0.0002,4]
[340061921,1728427631792,3000.0,0.00037445,120]
[340061922,1728427698897,3000.0,0.00037445,21]
[340061923,1728427746674,41764.7918105,0.0002,2]
[340061924,1728427811911,-172.43919626,0.00024596,2]
[340061925,1728427811935,-193.40711629,0.00024596,2]
[340061926,1728427811964,-255.33995386,0.00024696,2]
[340061927,1728427811990,-192.201654,0.00024844,2]
[340061928,1728427812014,-185.133605,0.00027425,2]
[340061929,1728427812038,-186.623321,0.00028435,2]
[340061930,1728427812061,-166.666666,0.00028601,2]
[340061931,1728427812086,-300.0,0.00028827,2]
[340061932,1728427812113,-19647.0910143,0.00028828,2]
[340061933,1728427812137,-471.88143552,0.00028836,2]
[340061934,1728427812162,-162.500005,0.00029012,2]
[340061935,1728427812185,-182.0578605,0.00029062,2]
[340061936,1728427812211,-166.666666,0.00029381,2]
[340061937,1728427812237,-162.500005,0.00029768,2]
[340061938,1728427812262,-166.666666,0.00030161,2]
[340061939,1728427812285,-465.34407178,0.00030278,2]
[340061940,1728427812310,-162.500005,0.00030524,2]
[340061941,1728427812335,-166.666666,0.0003094,2]
[340061942,1728427812359,-420.0,0.0003171,2]
[340061943,1728427812383,-166.666666,0.0003172,2]
[340061944,1728427812407,-465.01720359,0.00031791,2]
[340061945,1728427812432,-166.666666,0.000325,2]
[340061946,1728427812458,-465.00086018,0.00033381,2]
[340061947,1728427812482,-1859.665168,0.000341,23]
[340061948,1728427812508,-158.024,0.000346,39]
[340061949,1728427812531,-1000.0,0.000346,23]
[340061950,1728427812555,-179.44084559,0.00034832,30]
[340061951,1728427812585,-587.0,0.00034881,2]
[340061952,1728427812617,-1000.0,0.000351,23]
[340061953,1728427812647,-1000.0,0.000356,23]
[340061954,1728427812675,-344.927583,0.00036,2]
[340061955,1728427812706,-1000.0,0.000361,23]
[340061956,1728427812738,-150.0,0.00036441,2]
[340061957,1728427812771,-525.0,0.00036441,2]
[340061958,1728427812803,-1218.0,0.00036441,2]
[340061959,1728427812835,-1000.0,0.000366,23]
[340061960,1728427812864,-150.0,0.00036717,120]
[340061961,1728427812891,-1000.0,0.000371,23]
[340061962,1728427812920,-150.0,0.00037989,120]
[340061963,1728427812952,-149.99,0.00038,2]
[340061964,1728427812981,-823.0,0.00038369,30]
[340061965,1728427813008,-162.803257,0.000388,2]
[340061966,1728427813036,-150.0,0.00039441,2]
[340061967,1728427813064,-525.0,0.00039441,2]
[340061968,1728427813093,-1218.0,0.00039441,2]
[340061969,1728427813119,-344.927583,0.00041315,120]
[340061970,1728427813155,-525.0,0.00042441,2]
[340061971,1728427813187,-1218.0,0.00042441,2]
[340061972,1728427813216,-190.0,0.00042445,2]
[340061973,1728427813240,-541.19,0.000435,2]
[340061974,1728427813268,-400.0,0.00044658,2]
[340061975,1728427813295,-2500.0,0.00044835,3]
[340061976,1728427813323,-882.5979752,0.00044835,3]
[340061977,1728427813350,-3200.0,0.00044846,14]
[340061978,1728427813380,-150.094,0.00044846,30]
[340061979,1728427813412,-525.0,0.00045441,2]
[340061980,1728427813439,-1218.0,0.00045441,2]
[340061981,1728427813466,-344.927583,0.0004663,120]
[340061982,1728427813492,-179.197917,0.00046674,30]
[340061983,1728427813519,-500.0,0.00047062,10]
[340061984,1728427813550,-179.197917,0.00047258,30]
[340061985,1728427813578,-179.197917,0.00047841,30]
[340061986,1728427813605,-179.197917,0.00048425,30]
[340061987,1728427813635,-1000.0,0.00048432,10]
[340061988,1728427813665,-525.0,0.00048441,2]
[340061989,1728427813693,-1218.0,0.00048441,2]
[340061990,1728427813721,-179.197917,0.00049008,30]
[340061991,1728427813748,-516.96,0.00049315,30]
[340061992,1728427813776,-500.0,0.00049315,2]
[340061993,1728427813803,-500.0,0.00049315,120]
[340061994,1728427813831,-400.0,0.00049517,2]
[340061995,1728427813857,-500.0,0.00049863,2]
[340061996,1728427813883,-1000.0,0.00049863,30]
[340061997,1728427813912,-415.76,0.00050214,10]
[340061998,1728427813938,-346.47,0.00050214,10]
[340061999,1728427813966,-586.89923076,0.00050223,120]
[340062000,1728427813992,-187.24069306,0.00050223,120]
[340062001,1728427814018,-500.0,0.00050223,120]